fUSD/lending_fUSD_20240107
["ID","MTS","AMOUNT","RATE_DAILY","PERIOD"]
[310672157,1704639860585,500.0,0.0002249,2]
[310672158,1704639861051,500.0,0.0002249,2]
[310672159,1704639861681,500.0,0.0002249,2]
[310672160,1704639862250,500.0,0.0002249,2]
[310672161,1704639863226,1111.37,0.0002249,2]
[310672162,1704639863278,750.46,0.0002249,2]
[310672163,1704639863905,500.0,0.0002249,2]
[310672164,1704639864059,500.0,0.0002249,2]
[310672165,1704639864202,-77150.0,0.00022491,2]
[310672166,1704639864353,500.0,0.0002249,2]
[310672167,1704639864381,519.1025468,0.0002249,2]
[310672168,1704639864695,500.0,0.0002249,2]
[310672169,1704639864937,500.0,0.0002249,2]
[310672170,1704639865297,500.0,0.0002249,2]
[310672171,1704639865331,586.56,0.0002249,2]
[310672172,1704639865812,543.69,0.0002249,2]
[310672173,1704639865855,586.56,0.0002249,2]
[310672174,1704639865939,500.0,0.0002249,2]
[310672175,1704639865979,500.0,0.0002249,2]
[310672176,1704639866048,543.69,0.0002249,2]
[310672177,1704639866111,586.56,0.0002249,2]
[310672178,1704639866177,500.0,0.0002249,2]
[310672179,1704639866218,5179.96,0.0002249,2]
[310672180,1704639866248,500.0,0.0002249,2]
[310672181,1704639866478,500.0,0.0002249,2]
[310672182,1704639866514,500.0,0.0002249,2]
[310672183,1704639866545,5179.96,0.0002249,2]
[310672184,1704639866583,220.20278678,0.0002249,2]
[310672185,1704639866748,500.0,0.0002249,2]
[310672186,1704639867002,500.0,0.0002249,2]
[310672187,1704639867272,500.0,0.0002249,2]
[310672188,1704639867535,500.0,0.0002249,2]
[310672189,1704639867954,500.0,0.0002249,2]
[310672190,1704639868212,160.64902306,0.0002249,2]
[310672191,1704639868506,500.0,0.0002249,2]
[310672192,1704639868587,500.0,0.0002249,2]
[310672193,1704639868757,500.0,0.0002249,2]
[310672194,1704639868905,500.0,0.0002249,2]
[310672195,1704639869331,500.0,0.0002249,2]
[310672196,1704639869514,500.0,0.0002249,2]
[310672197,1704639869544,500.0,0.0002249,2]
[310672198,1704639869600,500.0,0.0002249,2]
[310672199,1704639869810,500.0,0.0002249,2]
[310672200,1704639869859,500.0,0.0002249,2]
[310672201,1704639869888,500.0,0.0002249,2]
[310672202,1704639869924,500.0,0.0002249,2]
[310672203,1704639870080,500.0,0.0002249,2]
[310672204,1704639870451,500.0,0.0002249,2]
[310672205,1704639871032,500.0,0.0002249,2]
[310672206,1704639871301,500.0,0.0002249,2]
[310672207,1704639871567,500.0,0.0002249,2]
[310672208,1704639871848,500.0,0.0002249,2]
[310672209,1704639871891,500.0,0.0002249,2]
[310672210,1704639872040,557.78,0.0002249,2]
[310672211,1704639872323,287.41881231,0.0002249,2]
[310672212,1704639872402,500.0,0.0002249,2]
[310672213,1704639872473,500.0,0.0002249,2]
[310672214,1704639872682,2000.0,0.00021673,2]
[310672215,1704639872711,500.0,0.0002249,2]
[310672216,1704639872866,763.709557,0.00022491,7]
[310672217,1704639872897,1462.48,0.0002249,2]
[310672218,1704639873109,763.709557,0.00022491,7]
[310672219,1704639873228,500.0,0.0002249,2]
[310672220,1704639873267,500.0,0.0002249,2]
[310672221,1704639873377,763.709557,0.00022492,7]
[310672222,1704639873484,500.0,0.0002249,2]
[310672223,1704639873547,500.0,0.0002249,2]
[310672224,1704639873642,763.709557,0.00022492,7]
[310672225,1704639873751,500.0,0.0002249,2]
[310672226,1704639874368,763.709557,0.00022492,7]
[310672227,1704639874415,500.0,0.0002249,2]
[310672228,1704639874480,531.42362062,0.0002249,2]
[310672229,1704639874609,763.709557,0.00022492,7]
[310672230,1704639874650,500.0,0.0002249,2]
[310672231,1704639874714,763.709557,0.00022492,7]
[310672232,1704639874750,500.0,0.0002249,2]
[310672233,1704639874811,500.0,0.0002249,2]
[310672234,1704639874845,763.709557,0.00022492,7]
[310672235,1704639874919,500.0,0.0002249,2]
[310672236,1704639875012,500.0,0.0002249,2]
[310672237,1704639875040,763.709557,0.00022493,7]
[310672238,1704639875218,500.0,0.0002249,2]
[310672239,1704639875286,241.64,0.0002249,2]
[310672240,1704639875327,763.709557,0.00022494,7]
[310672241,1704639875482,500.0,0.0002249,2]
[310672242,1704639875570,763.709557,0.00022491,7]
[310672243,1704639875831,763.709557,0.00022491,7]
[310672244,1704639875935,566.16,0.0002249,2]
[310672245,1704639876103,763.709557,0.00022492,7]
[310672246,1704639876175,500.0,0.0002249,2]
[310672247,1704639876361,763.709557,0.00022492,7]
[310672248,1704639876418,500.0,0.0002249,2]
[310672249,1704639876499,500.0,0.0002249,2]
[310672250,1704639876622,763.709557,0.00022492,7]
[310672251,1704639876677,500.0,0.0002249,2]
[310672252,1704639876867,763.709557,0.00022492,7]
[310672253,1704639877002,500.0,0.0002249,2]
[310672254,1704639877080,500.0,0.0002249,2]
[310672255,1704639877115,763.709557,0.00022492,7]
[310672256,1704639877637,988.25,0.0002249,2]
[310672257,1704639877681,763.709557,0.00022492,7]
[310672258,1704639877711,500.0,0.0002249,2]
[310672259,1704639877764,988.25,0.0002249,2]
[310672260,1704639877792,763.709557,0.00022493,7]
[310672261,1704639877827,500.0,0.0002249,2]
[310672262,1704639877883,988.25,0.0002249,2]
[310672263,1704639878061,988.25,0.0002249,2]
[310672264,1704639878257,500.0,0.0002249,2]
[310672265,1704639878291,763.709555,0.00022494,7]
[310672266,1704639878342,988.25,0.0002249,2]
[310672267,1704639878374,233.85761537,0.0002249,2]
[310672268,1704639878439,500.0,0.0002249,2]
[310672269,1704639878524,500.0,0.0002249,2]
[310672270,1704639878628,988.25,0.0002249,2]
[310672271,1704639878732,500.0,0.0002249,2]
[310672272,1704639878843,500.0,0.0002249,2]
[310672273,1704639879130,500.0,0.0002249,2]
[310672274,1704639879198,988.25,0.0002249,2]
[310672275,1704639879311,500.0,0.0002249,2]
[310672276,1704639879387,500.0,0.0002249,2]
[310672277,1704639879439,500.0,0.0002249,2]
[310672278,1704639879493,988.25,0.0002249,2]
[310672279,1704639879540,500.0,0.0002249,2]
[310672280,1704639879689,500.0,0.0002249,2]
[310672281,1704639879870,1286.08,0.0002249,2]
[310672282,1704639879986,500.0,0.0002249,2]
[310672283,1704639880139,1286.08,0.0002249,2]
[310672284,1704639880246,500.0,0.0002249,2]
[310672285,1704639880423,1286.08,0.0002249,2]
[310672286,1704639881010,507.95,0.0002249,2]
[310672287,1704639881616,167.81,0.00021659,2]
[310672288,1704639881662,500.0,0.0002249,2]
[310672289,1704639881712,500.0,0.0002249,2]
[310672290,1704639881860,500.0,0.0002249,2]
[310672291,1704639881907,500.0,0.0002249,2]
[310672292,1704639881951,500.0,0.0002249,2]
[310672293,1704639882032,500.0,0.0002249,2]
[310672294,1704639882138,500.0,0.0002249,2]
[310672295,1704639882194,500.0,0.0002249,2]
[310672296,1704639882282,500.0,0.0002249,2]
[310672297,1704639882405,500.0,0.0002249,2]
[310672298,1704639882547,500.0,0.0002249,2]
[310672299,1704639883189,401.43951448,0.00021815,2]
[310672300,1704639883305,161.28807768,0.0002249,2]
[310672301,1704639883742,543.060272,0.0002249,2]
[310672302,1704639883780,260.5314943,0.0002249,2]
[310672303,1704639883848,197.56149235,0.0002249,2]
[310672304,1704639884291,500.0,0.0002249,2]
[310672305,1704639885241,3987.99,0.0002249,2]
[310672306,1704639885299,500.0,0.0002249,2]
[310672307,1704639885334,6070.39633942,0.0002249,2]
[310672308,1704639885525,500.0,0.0002249,2]
[310672309,1704639885580,189.49317273,0.0002249,2]
[310672310,1704639885677,559.33897738,0.00020016,2]
[310672311,1704639885713,500.0,0.0002249,2]
[310672312,1704639885790,500.0,0.0002249,2]
[310672313,1704639885843,635.96,0.0002249,2]
[310672314,1704639885891,500.0,0.0002249,2]
[310672315,1704639886179,220.19737662,0.00020241,2]
[310672316,1704639886585,500.0,0.0002249,2]
[310672317,1704639886652,1095.14008186,0.0002249,2]
[310672318,1704639886890,500.0,0.0002249,2]
[310672319,1704639886963,4230.35,0.0002249,2]
[310672320,1704639887219,4230.35,0.0002249,2]
[310672321,1704639887250,532.13205427,0.0002249,2]
[310672322,1704639887280,282.12857278,0.0002249,2]
[310672323,1704639887311,500.0,0.0002249,2]
[310672324,1704639887376,652.72,0.0002249,2]
[310672325,1704639887475,4230.35,0.0002249,2]
[310672326,1704639887547,500.0,0.0002249,2]
[310672327,1704639887577,2470.25200052,0.00021815,2]
[310672328,1704639887680,1020.79972294,0.0002249,2]
[310672329,1704639887754,4230.35,0.0002249,2]
[310672330,1704639887795,272.89544917,0.0002249,2]
[310672331,1704639887883,500.0,0.0002249,2]
[310672332,1704639887983,652.72,0.0002249,2]
[310672333,1704639888032,3184.00180731,0.0002159,2]
[310672334,1704639888063,4230.35,0.0002249,2]
[310672335,1704639888131,500.0,0.0002249,2]
[310672336,1704639888344,4230.35,0.0002249,2]
[310672337,1704639888373,203.47773637,0.0002249,2]
[310672338,1704639888440,500.0,0.0002249,2]
[310672339,1704639888589,4230.35,0.0002249,2]
[310672340,1704639888715,500.0,0.0002249,2]
[310672341,1704639889007,4230.35,0.0002249,2]
[310672342,1704639889310,155.0,0.0002249,2]
[310672343,1704639889735,174.0076398,0.0002249,2]
[310672344,1704639889770,1879.33925955,0.0002249,2]
[310672345,1704639889988,200.21979921,0.0002249,2]
[310672346,1704639890442,696.7146,0.00022391,2]
[310672347,1704639890539,500.0,0.0002249,2]
[310672348,1704639890656,500.0,0.0002249,2]
[310672349,1704639890692,500.0,0.0002249,2]
[310672350,1704639890741,283.61751131,0.0002249,2]
[310672351,1704639890871,500.0,0.0002249,2]
[310672352,1704639890904,500.0,0.0002249,2]
[310672353,1704639890934,500.0,0.0002249,2]
[310672354,1704639891006,18929.87173977,0.0002249,2]
[310672355,1704639891137,267.49210596,0.0002249,2]
[310672356,1704639891179,500.0,0.0002249,2]
[310672357,1704639891225,155.0,0.0002249,2]
[310672358,1704639891315,283.87961777,0.0002249,2]
[310672359,1704639891529,500.0,0.0002249,2]
[310672360,1704639891812,500.0,0.0002249,2]
[310672361,1704639891912,312.84468649,0.0002249,2]
[310672362,1704639892157,500.0,0.0002249,2]
[310672363,1704639892217,1682.9,0.0002249,2]
[310672364,1704639892253,345.00219431,0.00022391,2]
[310672365,1704639892478,1682.9,0.0002249,2]
[310672366,1704639892798,1682.9,0.0002249,2]
[310672367,1704639893043,680.69,0.0002249,2]
[310672368,1704639893087,176.84598057,0.0002249,2]
[310672369,1704639893269,198.21015724,0.0002249,2]
[310672370,1704639893322,680.69,0.0002249,2]
[310672371,1704639893655,500.0,0.0002249,2]
[310672372,1704639893945,844.80069332,0.0002249,2]
[310672373,1704639894258,150.0,0.0002249,2]
[310672374,1704639894519,150.0,0.0002249,2]
[310672375,1704639894787,556.93,0.0002249,2]
[310672376,1704639894819,150.0,0.0002249,2]
[310672377,1704639895047,556.93,0.0002249,2]
[310672378,1704639895204,855.2284006,0.0002249,2]
[310672379,1704639895812,556.93,0.0002249,2]
[310672380,1704639895885,556.93,0.0002249,2]
[310672381,1704639896215,500.0,0.0002249,2]
[310672382,1704639896275,556.93,0.0002249,2]
[310672383,1704639896335,500.0,0.0002249,2]
[310672384,1704639896398,556.93,0.0002249,2]
[310672385,1704639896461,500.0,0.0002249,2]
[310672386,1704639896521,208.70176391,0.0002249,2]
[310672387,1704639896551,883.3850575,0.0002249,2]
[310672388,1704639896596,556.93,0.0002249,2]
[310672389,1704639896705,556.93,0.0002249,2]
[310672390,1704639896746,291.48413995,0.0002249,2]
[310672391,1704639897675,520.35990231,0.0002249,2]
[310672392,1704639897851,620.72688939,0.0002159,2]
[310672393,1704639897893,500.0,0.0002249,2]
[310672394,1704639898143,1031.40550924,0.0002249,2]
[310672395,1704639899213,500.0,0.0002249,2]
[310672396,1704639899355,500.0,0.0002249,2]
[310672397,1704639899607,500.0,0.0002249,2]
[310672398,1704639899638,1176.13,0.0002249,2]
[310672399,1704639899883,236.42,0.0002249,2]
[310672400,1704639899921,1176.13,0.0002249,2]
[310672401,1704639900284,276.95610583,0.0002249,2]
[310672402,1704639900425,500.0,0.0002249,2]
[310672403,1704639900743,500.0,0.0002249,2]
[310672404,1704639901003,500.0,0.0002249,2]
[310672405,1704639901033,500.0,0.0002249,2]
[310672406,1704639901161,500.0,0.0002249,2]
[310672407,1704639901284,500.0,0.0002249,2]
[310672408,1704639901317,500.0,0.0002249,2]
[310672409,1704639901446,500.0,0.0002249,2]
[310672410,1704639901732,500.0,0.0002249,2]
[310672411,1704639901981,500.0,0.0002249,2]
[310672412,1704639902048,500.0,0.0002249,2]
[310672413,1704639902075,2990.7318,0.00022391,2]
[310672414,1704639902244,500.0,0.0002249,2]
[310672415,1704639902294,528.85426272,0.0002249,2]
[310672416,1704639902432,480.41393728,0.0002249,2]
[310672417,1704639902456,10166.88732766,0.0002249,2]
[310672418,1704639902535,500.0,0.0002249,2]
[310672419,1704639903308,178.81752813,0.00020016,2]
[310672420,1704639903759,876.61,0.0002249,2]
[310672421,1704639904051,876.61,0.0002249,2]
[310672422,1704639904246,500.0,0.0002249,2]
[310672423,1704639904284,1567.0,0.0002249,2]
[310672424,1704639904327,876.61,0.0002249,2]
[310672425,1704639904766,500.0,0.0002249,2]
[310672426,1704639904811,876.61,0.0002249,2]
[310672427,1704639904883,500.0,0.0002249,2]
[310672428,1704639904932,876.61,0.0002249,2]
[310672429,1704639905167,876.61,0.0002249,2]
[310672430,1704639905240,500.0,0.0002249,2]
[310672431,1704639905387,164.68825246,0.0002249,2]
[310672432,1704639905434,876.61,0.0002249,2]
[310672433,1704639905510,500.0,0.0002249,2]
[310672434,1704639905735,876.61,0.0002249,2]
[310672435,1704639906233,500.0,0.0002249,2]
[310672436,1704639906265,848.9,0.0002249,2]
[310672437,1704639906351,3184.00180731,0.0002159,2]
[310672438,1704639906390,848.9,0.0002249,2]
[310672439,1704639906487,848.9,0.0002249,2]
[310672440,1704639906614,315.29435531,0.0002249,2]
[310672441,1704639907556,909.40632612,0.00021815,2]
[310672442,1704639915843,150.0,0.00021589,2]
[310672443,1704639915864,190.47,0.00021589,2]
[310672444,1704639915884,150.0,0.00021589,2]
[310672445,1704639915904,136.58926243,0.00021589,2]
[310672446,1704639922015,150.0,0.00021589,2]
[310672447,1704639922038,150.0,0.00021589,2]
[310672448,1704639922059,150.0,0.00021589,2]
[310672449,1704639922080,150.0,0.00021589,2]
[310672450,1704639922101,150.0,0.00021589,2]
[310672451,1704639922123,150.0,0.00021589,2]
[310672452,1704639922144,150.0,0.00021589,2]
[310672453,1704639922165,150.0,0.00021589,2]
[310672454,1704639922186,150.0,0.00021589,2]
[310672455,1704639922207,99.92855073,0.00021589,2]
[310672456,1704639922609,50.07144927,0.00021652,2]
[310672457,1704639922629,150.0,0.00021652,2]
[310672458,1704639922650,150.0,0.00021652,2]
[310672459,1704639922670,150.0,0.00021652,2]
[310672460,1704639922690,150.0,0.00021652,2]
[310672461,1704639922712,150.0,0.00021652,2]
[310672462,1704639922734,150.0,0.00021652,2]
[310672463,1704639922756,50.17855073,0.00021652,2]
[310672464,1704639929788,155.0,0.00021815,2]
[310672465,1704639932438,312.84468649,0.00021815,2]
[310672466,1704639940893,883.3850575,0.00021815,2]
[310672467,1704639943528,1067.07,0.00021627,2]
[310672468,1704639945796,150.0,0.00021815,2]
[310672469,1704639945822,28.16916672,0.00021815,2]
[310672470,1704639948457,150.0,0.00021815,2]
[310672471,1704639948478,24.10201418,0.00021815,2]
[310672472,1704639954897,150.0,0.00021815,2]
[310672473,1704639954918,150.0,0.00021815,2]
[310672474,1704639954945,456.51943906,0.00021815,2]
[310672475,1704639964727,150.0,0.00016712,2]
[310672476,1704639964747,27.65,0.00016712,2]
[310672477,1704640008756,500.0,0.0002249,5]
[310672478,1704640009037,500.0,0.0002249,5]
[310672479,1704640009319,154.40635903,0.0002249,5]
[310672480,1704640009752,122.35,0.00021529,2]
[310672481,1704640009789,150.0,0.00021529,2]
[310672482,1704640009821,239.13017266,0.00021529,2]
[310672483,1704640009867,782.29982734,0.00021529,2]
[310672484,1704640010015,1293.78,0.00021642,2]
[310672485,1704640010231,1293.78,0.00021755,2]
[310672486,1704640010539,1293.78,0.00021869,2]
[310672487,1704640010811,1293.78,0.00021982,2]
[310672488,1704640013526,1293.78,0.00022095,2]
[310672489,1704640019027,500.0,0.0002249,5]
[310672490,1704640032032,3181.57563138,0.00021493,2]
[310672491,1704640041157,326.38,0.00021504,2]
[310672492,1704640045456,500.0,0.00021491,2]
[310672493,1704640046820,500.0,0.00022039,2]
[310672494,1704640051833,256.13,0.00021491,2]
[310672495,1704640053108,256.13,0.00021628,2]
[310672496,1704640055011,256.13,0.00021765,2]
[310672497,1704640055752,256.13,0.00021902,2]
[310672498,1704640057029,256.13,0.00022039,2]
[310672499,1704640058307,256.13,0.00022176,2]
[310672500,1704640065893,234.96,0.00021493,2]
[310672501,1704640095736,3195.81113213,0.00022,2]
[310672502,1704640102577,151.0,0.00022491,7]
[310672503,1704640102848,151.0,0.00022491,7]
[310672504,1704640103227,194.95888,0.00022491,7]
[310672505,1704640104340,157.28,0.00021485,2]
[310672506,1704640108432,174.73,0.00017188,2]
[310672507,1704640109727,1102.9400281,0.00022,2]
[310672508,1704640118667,159.98,0.00021693,2]
[310672509,1704640145108,-1293.78,0.00022208,2]
[310672510,1704640145128,-80.3598,0.00022263,2]
[310672511,1704640188458,1981.38,0.00021445,2]
[310672512,1704640188522,200.0,0.00021918,2]
[310672515,1704640192108,200.0,0.00021439,2]
[310672516,1704640198644,365.1,0.00021433,2]
[310672517,1704640208070,186.81,0.00021422,2]
[310672518,1704640217835,150.27,0.00021581,2]
[310672519,1704640218040,150.27,0.00021651,2]
[310672520,1704640218262,150.27,0.00021721,2]
[310672521,1704640218475,150.27,0.00021792,2]
[310672522,1704640218705,150.27,0.00021862,2]
[310672523,1704640218935,150.27,0.00021932,2]
[310672524,1704640219172,150.27,0.00022003,2]
[310672525,1704640219437,150.27,0.00022073,2]
[310672526,1704640219829,150.27,0.00022143,2]
[310672527,1704640229385,23900.0,0.00021397,2]
[310672528,1704640230779,329.28,0.00021397,2]
[310672538,1704640232060,-150.27,0.00022213,2]
[310672539,1704640232070,-433.34025074,0.00022263,2]
[310672540,1704640232080,-156.43580585,0.00022264,2]
[310672541,1704640232090,-150.27,0.00022284,2]
[310672542,1704640232100,-151.41033732,0.00022289,2]
[310672543,1704640232110,-151.41033732,0.00022299,2]
[310672544,1704640232120,-151.41033732,0.00022309,2]
[310672545,1704640232129,-256.13,0.00022313,2]
[310672546,1704640232139,-151.41033732,0.0002232,2]
[310672547,1704640232148,-303.36214187,0.00022321,2]
[310672548,1704640232173,-10230.01349282,0.00022321,2]
[310672549,1704640232183,-1293.78,0.00022322,2]
[310672550,1704640232192,-151.41033732,0.0002233,2]
[310672551,1704640232202,-151.41033732,0.0002234,2]
[310672552,1704640232212,-151.41033732,0.0002235,2]
[310672553,1704640232222,-150.27,0.00022354,2]
[310672554,1704640232231,-151.41033732,0.0002236,2]
[310672555,1704640232242,-151.41033732,0.00022371,2]
[310672556,1704640232252,-151.41033732,0.00022381,2]
[310672557,1704640232262,-150.0,0.00022388,2]
[310672558,1704640232272,-485.37327303,0.00022389,2]
[310672559,1704640232282,-636.35268627,0.00022389,2]
[310672560,1704640232291,-1200.88686892,0.00022389,2]
[310672561,1704640232301,-155.0,0.0002239,2]
[310672562,1704640232310,-1482.5,0.0002239,2]
[310672563,1704640232319,-929.18,0.0002239,2]
[310672564,1704640232329,-500.0,0.0002239,2]
[310672565,1704640232343,-211654.6678,0.00022391,2]
[310672566,1704640232352,-961.8093,0.00022391,2]
[310672567,1704640232366,-34843.9584,0.00022391,2]
[310672568,1704640232375,-1995.09187599,0.00022391,2]
[310672569,1704640232386,-151.41033732,0.00022391,2]
[310672570,1704640232396,-150.27,0.00022424,2]
[310672571,1704640232405,-1293.78,0.00022435,2]
[310672572,1704640232416,-1995.09187591,0.00022437,2]
[310672573,1704640232426,-256.13,0.0002245,2]
[310672574,1704640232436,-329.28,0.00022466,2]
[310672575,1704640232446,-178.47865432,0.0002248,2]
[310672576,1704640232456,-178.47865432,0.00022481,2]
[310672577,1704640232466,-178.47865432,0.00022481,2]
[310672578,1704640232771,-1995.09187591,0.00022484,2]
[310672579,1704640232790,-206.62196093,0.00022488,2]
[310672580,1704640232800,-262.94748596,0.00022488,2]
[310672581,1704640232810,-155.0,0.00022489,2]
[310672582,1704640232819,-156.02860918,0.00022489,2]
[310672583,1704640232828,-252.23869713,0.00022489,2]
[310672584,1704640232837,-156.03562825,0.00022489,2]
[310672585,1704640232847,-155.0,0.00022489,2]
[310672586,1704640232856,-159.4438917,0.00022489,2]
[310672587,1704640232866,-379.04890278,0.00022489,2]
[310672588,1704640232875,-214.52914029,0.00022489,2]
[310672589,1704640232885,-158.41091363,0.00022489,2]
[310672590,1704640232894,-299.08047786,0.00022489,2]
[310672591,1704640232903,-500.0,0.00022489,2]
[310672592,1704640232912,-500.0,0.00022489,2]
[310672593,1704640232922,-333.13,0.00022489,2]
[310672594,1704640232931,-786.15,0.00022489,2]
[310672595,1704640232941,-786.15,0.00022489,2]
[310672596,1704640232950,-786.15,0.00022489,2]
[310672597,1704640232959,-500.0,0.00022489,2]
[310672598,1704640232969,-500.0,0.00022489,2]
[310672599,1704640232978,-331.71368873,0.00022489,2]
[310672600,1704640232988,-500.0,0.00022489,2]
[310672601,1704640232997,-500.0,0.00022489,2]
[310672602,1704640233006,-500.0,0.00022489,2]
[310672603,1704640233015,-2991.36,0.00022489,2]
[310672604,1704640233024,-2991.36,0.00022489,2]
[310672605,1704640233034,-2991.36,0.00022489,2]
[310672606,1704640233043,-500.0,0.00022489,2]
[310672607,1704640233052,-500.0,0.00022489,2]
[310672608,1704640233061,-500.0,0.00022489,2]
[310672609,1704640233071,-500.0,0.00022489,2]
[310672610,1704640233080,-500.0,0.00022489,2]
[310672611,1704640233090,-500.0,0.00022489,2]
[310672612,1704640233099,-500.0,0.00022489,2]
[310672613,1704640233108,-500.0,0.00022489,2]
[310672614,1704640233117,-500.0,0.00022489,2]
[310672615,1704640233127,-794.23,0.00022489,2]
[310672616,1704640233136,-794.23,0.00022489,2]
[310672617,1704640233145,-794.23,0.00022489,2]
[310672618,1704640233154,-500.0,0.00022489,2]
[310672619,1704640233164,-500.0,0.00022489,2]
[310672620,1704640233173,-500.0,0.00022489,2]
[310672621,1704640233183,-500.0,0.00022489,2]
[310672622,1704640233192,-500.0,0.00022489,2]
[310672623,1704640233202,-500.0,0.00022489,2]
[310672624,1704640233211,-780.43,0.00022489,2]
[310672625,1704640233221,-780.43,0.00022489,2]
[310672626,1704640233230,-780.43,0.00022489,2]
[310672627,1704640233240,-500.0,0.00022489,2]
[310672628,1704640233249,-500.0,0.00022489,2]
[310672629,1704640233259,-500.0,0.00022489,2]
[310672630,1704640233268,-500.0,0.00022489,2]
[310672631,1704640233278,-500.0,0.00022489,2]
[310672632,1704640233287,-500.0,0.00022489,2]
[310672633,1704640233297,-680.64,0.00022489,2]
[310672634,1704640233306,-680.64,0.00022489,2]
[310672635,1704640233315,-680.64,0.00022489,2]
[310672636,1704640233325,-530.98,0.00022489,2]
[310672637,1704640233334,-530.98,0.00022489,2]
[310672638,1704640233344,-530.98,0.00022489,2]
[310672639,1704640233353,-668.74,0.00022489,2]
[310672640,1704640233363,-668.74,0.00022489,2]
[310672641,1704640233372,-668.74,0.00022489,2]
[310672642,1704640233381,-6377.85,0.00022489,2]
[310672643,1704640233391,-6377.85,0.00022489,2]
[310672644,1704640233400,-6377.85,0.00022489,2]
[310672645,1704640233410,-1602.39,0.00022489,2]
[310672646,1704640233420,-1602.39,0.00022489,2]
[310672647,1704640233429,-1602.39,0.00022489,2]
[310672648,1704640233439,-500.0,0.00022489,2]
[310672649,1704640233458,-500.0,0.00022489,2]
[310672650,1704640233470,-500.0,0.00022489,2]
[310672651,1704640233480,-1064.79,0.00022489,2]
[310672652,1704640233490,-1064.79,0.00022489,2]
[310672653,1704640233500,-1064.79,0.00022489,2]
[310672654,1704640233509,-500.0,0.00022489,2]
[310672655,1704640233520,-500.0,0.00022489,2]
[310672656,1704640233529,-500.0,0.00022489,2]
[310672657,1704640233539,-500.0,0.00022489,2]
[310672658,1704640233549,-500.0,0.00022489,2]
[310672659,1704640233559,-678.8,0.00022489,2]
[310672660,1704640233568,-500.0,0.00022489,2]
[310672661,1704640233578,-678.8,0.00022489,2]
[310672662,1704640233587,-678.8,0.00022489,2]
[310672663,1704640233596,-500.0,0.00022489,2]
[310672664,1704640233606,-500.0,0.00022489,2]
[310672665,1704640233616,-500.0,0.00022489,2]
[310672666,1704640233626,-500.0,0.00022489,2]
[310672667,1704640233636,-500.0,0.00022489,2]